bitfinex/quotes_ETHUSD_20251214
["timestamp","ask_amount","ask_price","bid_price","bid_amount"]
[1765738772968,9.72937137,3104.4,3104.3,0.00023449]
[1765738774667,10.24037137,3104.4,3104.3,0.00023449]
[1765738778264,16.57037137,3104.4,3104.3,0.00023449]
[1765738784845,16.57037137,3104.4,3104.1,0.002]
[1765738784846,0.98597929,3104.3,3104.1,0.002]
[1765738785046,3.30453986,3104.2,3104.1,0.002]
[1765738785242,10.10173986,3104.2,3104.1,0.002]
[1765738785446,16.96835452,3104.2,3104.1,0.002]
[1765738785648,13.32318177,3104.2,3104.1,0.002]
[1765738790768,13.32318177,3104.2,3104.1,0.0002351]
[1765738791077,13.80788177,3104.2,3104.1,0.0002351]
[1765738796483,3.80202098,3104.1,3104.0,0.002]
[1765738796676,10.22476231,3104.1,3104.0,0.002]
[1765738796877,10.22476231,3104.1,3104.0,0.00023543]
[1765738797074,20.60543906,3104.1,3104.0,0.00023543]
[1765738797585,21.26693906,3104.1,3104.0,0.00023543]
[1765738800766,0.405504,3103.8,3103.5,0.002]
[1765738800956,5.25847787,3103.6,3103.5,0.002]
[1765738801357,2.1412332,3103.6,3103.5,0.002]
[1765738801556,0.80056356,3103.6,3103.5,0.4845]
[1765738801759,0.73108827,3103.6,3103.5,0.9758]
[1765738802196,1.31156356,3103.6,3103.5,0.9758]
[1765738802396,4.53362825,3103.6,3103.5,0.4845]
[1765738802592,4.53362825,3103.6,3103.5,0.9758]
[1765738803375,10.33773792,3103.6,3103.5,0.002]
[1765738803577,10.33773792,3103.6,3103.5,0.00023612]
[1765738804994,16.66773792,3103.6,3103.5,0.00023612]
[1765738807308,16.66773792,3103.6,3102.9,0.002]
[1765738807309,0.405504,3103.5,3102.9,0.002]
[1765738807466,0.49652983,3103.1,3102.9,0.002]
[1765738807666,1.00752983,3103.1,3102.9,0.002]
[1765738807976,1.13658519,3103.1,3103.0,0.4845]
[1765738808968,3.44266505,3103.1,3103.0,0.4845]
[1765738809168,3.22258386,3103.1,3103.0,0.9758]
[1765738809398,3.73358386,3103.1,3103.0,0.9758]
[1765738809877,3.66899064,3103.1,3103.0,0.9758]
[1765738810394,3.66899064,3103.1,3103.0,0.4845]
[1765738810570,4.6894876,3103.1,3103.0,0.9758]
[1765738810966,3.66899064,3103.1,3103.0,0.9758]
[1765738812300,3.66899064,3103.1,3103.0,0.4845]
[1765738813573,3.76001647,3103.1,3103.0,0.4845]
[1765738814573,4.34049176,3103.1,3103.0,0.4845]
[1765738814878,4.82499176,3103.1,3103.0,0.002]
[1765738815078,5.96108882,3103.1,3103.0,0.002]
[1765738815514,5.96108882,3103.1,3103.0,0.4845]
[1765738816114,5.96108882,3103.1,3103.0,0.002]
[1765738816628,6.94468882,3103.1,3103.0,0.002]
[1765738817235,7.35019282,3103.1,3103.0,0.002]
[1765738817436,7.35019282,3103.1,3103.0,0.00023665]
[1765738822627,0.58047529,3103.0,3102.9,0.002]
[1765738822826,2.88601376,3103.0,3102.9,0.002]
[1765738823215,6.10870148,3103.0,3102.9,0.002]
[1765738823418,1.586004,3102.9,3102.8,0.00047448]
[1765738823617,5.90364064,3102.9,3102.8,0.00047448]
[1765738824030,6.03271224,3102.9,3102.8,0.00047448]
[1765738824227,7.91812593,3102.9,3102.8,0.00047448]
[1765738825248,10.64841751,3102.9,3102.8,0.00047448]
[1765738825543,11.14091751,3102.9,3102.8,0.00047448]
[1765738829449,4.63211481,3102.6,3102.5,0.00077097]
[1765738829743,8.82461801,3102.6,3102.5,0.00077097]
[1765738830049,10.68555283,3102.6,3102.5,0.00077097]
[1765738830568,5.19361331,3102.6,3102.5,0.98467097]
[1765738830749,4.44365925,3102.6,3102.5,0.98467097]
[1765738832070,3.93265925,3102.6,3102.5,0.98467097]
[1765738832272,3.7341032,3102.6,3102.5,0.98467097]
[1765738833769,3.7341032,3102.6,3102.5,0.49797097]
[1765738834079,3.7341032,3102.6,3102.5,0.98467097]
[1765738836587,3.2231032,3102.6,3102.5,0.98467097]
[1765738836787,5.3873825,3102.6,3102.5,0.49797097]
[1765738837189,6.35533207,3102.6,3102.5,0.49797097]
[1765738837797,6.35533207,3102.6,3102.5,0.98467097]
[1765738838471,7.21923607,3102.6,3102.5,0.00077097]
[1765738838678,7.69013607,3102.6,3102.5,0.00077097]
[1765738839078,0.98597929,3102.5,3102.4,0.002]
[1765738839286,2.88164495,3102.5,3102.4,0.002]
[1765738839597,3.35254495,3102.5,3102.4,0.002]
[1765738839796,9.68254495,3102.5,3102.4,0.002]
[1765738839967,0.405504,3102.3,3102.2,0.002]
[1765738840169,5.06394064,3102.3,3102.2,0.002]
[1765738840425,10.10034615,3102.3,3102.2,0.002]
[1765738842891,20.56518167,3102.3,3102.2,0.0002396]
[1765738845104,0.405504,3101.8,3101.7,0.002]
[1765738845299,5.47451481,3101.8,3101.7,0.002]
[1765738845469,6.04152629,3101.8,3101.7,0.002]
[1765738845668,6.1706433,3101.8,3101.7,0.002]
[1765738846302,2.52450778,3101.8,3101.7,0.002]
[1765738846504,2.61553361,3101.8,3101.7,0.002]
[1765738846682,5.83946809,3101.8,3101.7,0.002]
[1765738847388,6.31036809,3101.8,3101.7,0.002]
[1765738849404,5.10256409,3101.8,3101.7,0.9859]
[1765738850301,5.10256409,3101.8,3101.7,0.4992]
[1765738850479,5.96646809,3101.8,3101.7,0.002]
[1765738850685,5.83735108,3101.8,3101.7,0.002]
[1765738852401,6.30825108,3101.8,3101.7,0.002]
[1765738852606,4.37142125,3101.8,3101.7,0.4992]
[1765738852932,4.88242125,3101.8,3101.7,0.9859]
[1765738853103,4.37142125,3101.8,3101.7,0.9859]
[1765738853404,3.73493448,3101.8,3101.7,0.9859]
[1765738854203,4.31540977,3101.8,3101.7,0.9859]
[1765738855413,8.83047433,3101.8,3101.7,0.002]
[1765738855579,1.31507929,3101.7,3101.6,1e-08]
[1765738855900,1.78597929,3101.7,3101.6,1e-08]
[1765738856881,2.19940512,3101.7,3101.6,1e-08]
[1765738857079,2.19940512,3101.7,3101.5,0.002]
[1765738857080,2.14847929,3101.7,3101.5,0.002]
[1765738857280,1.42078635,3101.6,3101.5,0.002]
[1765738857479,5.67600401,3101.6,3101.5,0.002]
[1765738858310,5.76702984,3101.6,3101.5,0.002]
[1765738858504,3.22414237,3101.6,3101.5,0.9346]
[1765738858704,3.73514237,3101.6,3101.5,0.9346]
[1765738858900,4.31561766,3101.6,3101.5,0.9346]
[1765738859614,3.73514237,3101.6,3101.5,0.9346]
[1765738859817,4.31561766,3101.6,3101.5,0.9346]
[1765738860115,5.07867546,3101.6,3101.5,0.9346]
[1765738860319,4.31561766,3101.6,3101.5,0.9346]
[1765738861309,4.72112166,3101.6,3101.5,0.4655]
[1765738861518,0.09102583,3101.7,3101.5,0.9346]
[1765738861813,4.31561766,3101.6,3101.5,0.002]
[1765738862217,4.31561766,3101.6,3101.5,0.4655]
[1765738862409,5.40117877,3101.6,3101.5,0.002]
[1765738862718,6.25728277,3101.6,3101.5,0.002]
[1765738862928,6.72078277,3101.6,3101.5,0.002]
[1765738864323,6.72078277,3101.6,3101.5,0.0002406]
[1765738864816,6.25728277,3101.6,3101.5,0.0002406]
[1765738865716,6.72078277,3101.6,3101.5,0.0002406]
[1765738870231,0.98597929,3101.5,3101.2,0.002]
[1765738870526,0.09102583,3101.3,3101.2,0.002]
[1765738871234,0.09102583,3101.3,3101.2,0.4655]
[1765738873597,3.89595538,3101.3,3101.2,0.4655]
[1765738873799,4.40695538,3101.3,3101.2,0.9346]
[1765738876857,6.03529235,3101.3,3101.2,0.002]
[1765738877170,6.03529235,3101.3,3100.3,0.002]
[1765738877171,0.3577,3101.0,3100.3,0.002]
[1765738877463,0.511,3100.9,3100.4,0.4711]
[1765738877862,0.58047529,3100.7,3100.4,0.4711]
[1765738878277,0.58047529,3100.7,3100.6,0.4635]
[1765738878439,1.42564349,3100.7,3100.6,0.4635]
[1765738879770,0.60202583,3100.9,3100.6,0.9326]
[1765738879771,3.31594153,3100.9,3100.6,0.9326]
[1765738880075,0.60202583,3100.7,3100.6,0.4691]
[1765738880294,0.60202583,3100.7,3100.4,0.4711]
[1765738880598,0.60202583,3100.7,3100.6,0.9326]
[1765738881897,3.82710403,3100.7,3100.6,0.9326]
[1765738882238,4.54140859,3100.7,3100.6,0.4635]
[1765738882440,4.03040859,3100.7,3100.6,0.9326]
[1765738882757,4.54140859,3100.7,3100.6,0.9326]
[1765738883368,3.2250782,3100.7,3100.6,0.9326]
[1765738883673,0.511,3100.7,3100.6,0.9326]
[1765738886065,0.511,3100.9,3100.6,0.9326]
[1765738886388,0.511,3100.9,3100.7,0.4541]
[1765738886685,0.511,3100.9,3100.8,0.4891]
[1765738887091,0.511,3100.9,3100.8,0.9432]
[1765738888168,0.09102583,3101.3,3100.8,0.9432]
[1765738888482,0.511,3101.2,3100.9,0.4541]
[1765738888682,0.511,3101.1,3100.9,0.4541]
[1765738889094,0.511,3101.1,3101.0,0.4891]
[1765738889684,0.511,3101.1,3101.0,0.9627]
[1765738892309,3.73566221,3101.1,3101.0,0.4891]
[1765738892512,0.58047529,3101.0,3100.5,0.4756]
[1765738892670,0.09102583,3100.6,3100.5,0.002]
[1765738892866,0.60202583,3100.6,3100.5,0.002]
[1765738893072,0.60202583,3100.6,3100.5,0.501]
[1765738893971,1.08792583,3100.6,3100.5,0.002]
[1765738894307,1.54532583,3100.6,3100.5,0.002]
[1765738894510,1.708961,3100.6,3100.5,0.002]
[1765738894990,5.51461851,3100.6,3100.5,0.002]
[1765738901934,5.00361851,3100.6,3100.5,0.002]
[1765738902136,5.51461851,3100.6,3100.5,0.002]
[1765738903911,5.05721851,3100.6,3100.5,0.002]
[1765738904313,4.54621851,3100.6,3100.5,0.002]
[1765738904624,5.05721851,3100.6,3100.5,0.002]
[1765738905130,3.47984322,3100.6,3100.5,0.9746]
[1765738905331,3.99084322,3100.6,3100.5,0.501]
[1765738909460,3.99084322,3100.6,3100.4,0.002]
[1765738909461,5.92012251,3100.6,3100.4,0.002]
[1765738909672,2.29510564,3100.5,3100.4,0.002]
[1765738911659,5.52039188,3100.5,3100.4,0.002]
[1765738912479,5.52039188,3100.5,3100.2,0.002]
[1765738912480,0.889904,3100.4,3100.2,0.002]
[1765738912641,6.08038174,3100.3,3100.2,0.002]
[1765738912842,6.08038174,3100.3,3100.0,1e-08]
[1765738912843,0.98597929,3100.2,3100.0,1e-08]
[1765738913037,3.09142762,3100.1,3100.0,1e-08]
[1765738913270,3.54882762,3100.1,3100.0,1e-08]
[1765738913959,6.77453001,3100.1,3100.0,1e-08]
[1765738914776,7.18003401,3100.1,3100.0,1e-08]
[1765738916872,13.51003401,3100.1,3100.0,1e-08]
[1765738917650,12.99903401,3100.1,3100.0,1e-08]
[1765738917850,13.51003401,3100.1,3100.0,1e-08]
[1765738918564,0.98597929,3100.0,3099.2,0.002]
[1765738918771,3.58907116,3100.0,3099.2,0.002]
[1765738920779,6.81487761,3100.0,3099.2,0.002]
[1765738921678,7.13727761,3100.0,3099.2,0.002]
[1765738921851,7.13727761,3100.0,3099.2,0.4591]
[1765738921852,6.81487761,3100.0,3099.2,0.4591]
[1765738922052,7.32587761,3100.0,3099.2,0.4591]
[1765738924584,7.32587761,3100.0,3099.9,0.00024309]
[1765738925597,7.32587761,3100.0,3097.9,0.1702]
[1765738925598,0.405504,3098.7,3097.9,0.1702]
[1765738925776,0.58047529,3098.2,3097.9,0.6273]
[1765738925958,0.511,3098.1,3097.9,0.6273]
[1765738926154,0.511,3098.1,3097.9,0.1702]
[1765738926371,0.511,3098.1,3098.0,0.4577]
[1765738927570,3.73878477,3098.1,3098.0,0.4577]
[1765738927991,3.22778477,3098.1,3098.0,0.4577]
[1765738928155,6.45452784,3098.6,3098.0,0.9148]
[1765738928485,6.45452784,3098.6,3098.5,0.6279]
[1765738928486,3.22726392,3098.6,3098.5,0.6279]
[1765738928654,3.73826392,3098.6,3098.5,0.6279]
[1765738928984,4.31873921,3098.6,3098.5,1.085]
[1765738930054,4.31873921,3098.6,3098.5,0.6279]
[1765738931687,4.31873921,3098.6,3097.4,0.002]
[1765738931688,0.98597929,3098.5,3097.7,0.4571]
[1765738931890,1.33617929,3098.3,3097.7,0.4571]
[1765738932096,0.511,3098.2,3097.7,0.4571]
[1765738932812,0.511,3098.2,3097.4,0.002]
[1765738932813,0.405504,3098.1,3097.4,0.4591]
[1765738932965,0.09102583,3097.5,3097.4,0.4591]
[1765738933171,0.60202583,3097.5,3097.4,0.4591]
[1765738933390,0.60202583,3097.5,3097.4,0.9168]
[1765738933861,3.31943583,3097.5,3097.4,0.9168]
[1765738934063,0.511,3097.5,3097.4,0.9168]
[1765738934502,0.09102583,3098.0,3097.4,0.9168]
[1765738934677,0.09102583,3097.8,3097.5,0.4571]
[1765738935204,3.73905578,3097.9,3097.7,0.4577]
[1765738935379,4.31953107,3097.9,3097.8,0.4577]
[1765738935797,0.511,3097.9,3097.8,0.4577]
[1765738936001,0.511,3097.9,3097.8,0.9148]
[1765738936202,3.73899315,3097.9,3097.8,0.9148]
[1765738936921,0.09102583,3098.2,3097.8,0.9148]
[1765738937213,3.31870641,3098.2,3098.1,0.6279]
[1765738937389,3.82970641,3098.2,3098.1,0.6279]
[1765738937594,3.82970641,3098.2,3098.1,1.085]
[1765738937910,3.31870641,3098.2,3098.1,1.085]
[1765738938217,3.82970641,3098.2,3098.1,1.085]
[1765738938619,0.09102583,3098.2,3098.1,1.085]
[1765738938821,3.82970641,3098.2,3098.1,1.085]
[1765738939185,0.60202583,3098.2,3098.1,1.085]
[1765738940506,3.82970641,3098.2,3098.1,1.085]
[1765738941592,0.60202583,3098.2,3098.1,0.6279]
[1765738941811,3.82970641,3098.2,3098.1,1.085]
[1765738944286,3.73868058,3098.2,3098.1,1.085]
[1765738945209,0.09102583,3098.3,3098.1,1.085]
[1765738945512,3.31864081,3098.3,3098.2,0.9148]
[1765738945678,3.82964081,3098.3,3098.2,0.9148]
[1765738946294,3.31864081,3098.3,3098.2,0.9148]
[1765738946501,3.82964081,3098.3,3098.2,0.9148]
[1765738946814,3.82960224,3098.3,3098.2,0.9148]
[1765738948214,0.511,3098.3,3098.2,0.9148]
[1765738948415,0.60202583,3098.3,3098.2,0.9148]
[1765738948913,0.09102583,3098.3,3098.2,0.9148]
[1765738949114,0.09102583,3098.5,3098.2,0.9148]
[1765738949412,0.511,3098.5,3098.4,0.4886]
[1765738949913,0.511,3098.5,3098.4,0.9498]
[1765738951421,3.22721585,3098.7,3098.4,0.9498]
[1765738951589,3.22721585,3098.7,3098.6,0.4569]
[1765738951917,3.73821585,3098.7,3098.6,0.4569]
[1765738952111,3.73821585,3098.7,3098.6,0.9391]
[1765738952520,0.511,3098.7,3098.6,0.9391]
[1765738952687,0.60202583,3098.7,3098.6,0.9391]
[1765738952883,3.8291856,3098.7,3098.6,0.9391]
[1765738953087,3.8301856,3098.7,3098.6,0.9391]
[1765738953294,3.3191856,3098.7,3098.6,0.9391]
[1765738953519,3.8301856,3098.7,3098.6,0.9391]
[1765738953999,3.8301856,3098.7,3098.6,0.4569]
[1765738954711,3.8301856,3098.7,3098.6,0.9391]
[1765738956820,0.60302583,3098.7,3098.6,0.9391]
[1765738957323,3.8301856,3098.7,3098.6,0.9391]
[1765738957621,0.001,3098.7,3098.6,0.9391]
[1765738957922,0.512,3098.7,3098.6,0.9391]
[1765738962014,0.512,3098.7,3098.6,0.4569]
[1765738962216,3.73915977,3098.7,3098.6,0.4569]
[1765738962389,3.73915977,3098.7,3098.6,0.9391]
[1765738963905,4.4448839,3098.7,3098.6,0.4569]
[1765738964297,3.73915977,3098.7,3098.6,0.4569]
[1765738965697,3.73915977,3098.7,3098.6,0.9391]
[1765738968206,0.512,3098.7,3098.6,0.9391]
[1765738970331,0.60302583,3098.7,3098.6,0.4569]
[1765738970713,0.60302583,3098.7,3098.6,0.9391]
[1765738971236,0.512,3098.7,3098.6,0.9391]
[1765738972635,3.73915977,3098.7,3098.6,0.4569]
[1765738973313,5.4033779,3098.7,3098.5,0.002]
[1765738973515,0.91552583,3098.6,3098.5,0.002]
[1765738975115,4.14278975,3098.6,3098.5,0.002]
[1765738975641,4.72326504,3098.6,3098.5,0.002]
[1765738975830,4.72326504,3098.6,3098.5,0.00024384]
[1765738976136,6.47785687,3098.6,3098.5,0.00024384]
[1765738976831,5.86511721,3098.6,3098.5,0.00024384]
[1765738977029,6.03511721,3098.6,3098.5,0.47124384]
[1765738977237,4.40976504,3098.6,3098.5,0.47124384]
[1765738978123,3.89876504,3098.6,3098.5,0.47124384]
[1765738978331,3.89876504,3098.6,3098.5,0.00024384]
[1765738978332,8.53708661,3098.6,3098.5,0.00024384]
[1765738978527,4.36766504,3098.6,3098.5,0.00024384]
[1765738978709,4.87866504,3098.6,3098.5,0.00024384]
[1765738978909,5.68934752,3098.6,3098.5,0.00024384]
[1765738979110,9.80636909,3098.6,3098.5,0.00024384]
[1765738981335,6.14794752,3098.6,3098.5,0.00024384]
[1765738981726,5.68934752,3098.6,3098.5,0.00024384]
[1765738983441,5.22044752,3098.6,3098.5,0.47124384]
[1765738984447,5.22044752,3098.6,3098.5,0.00024384]
[1765738984659,5.68934752,3098.6,3098.5,0.00024384]
[1765738985948,5.68934752,3098.6,3098.5,0.47124384]
[1765738985949,5.22044752,3098.6,3098.5,0.47124384]
[1765738986731,9.80636909,3098.6,3098.5,0.00024384]
[1765738988032,5.17834752,3098.6,3098.5,0.00024384]
[1765738988248,5.22044752,3098.6,3098.5,0.47124384]
[1765738993850,4.40976504,3098.6,3098.5,0.92674384]
[1765738994359,0.511,3098.6,3098.5,0.92674384]
[1765738996955,3.73826392,3098.6,3098.5,0.92674384]
[1765738998557,3.73826392,3098.6,3098.5,0.47124384]
[1765738998558,3.31828975,3098.6,3098.5,0.47124384]
[1765738998861,3.83028975,3098.6,3098.5,0.47124384]
[1765738999535,3.83028975,3098.6,3098.5,0.92674384]
[1765739001233,3.83028975,3098.6,3098.5,0.47124384]
[1765739002449,3.83028975,3098.6,3098.5,0.92674384]
[1765739002952,3.73926392,3098.6,3098.5,0.92674384]
[1765739003353,0.512,3098.6,3098.5,0.92674384]
[1765739007233,0.512,3098.6,3098.5,0.96964384]
[1765739007861,0.512,3098.6,3098.5,0.00024384]
[1765739008167,0.512,3098.6,3098.5,0.46534384]
[1765739009372,0.001,3098.6,3098.5,0.46534384]
[1765739009560,0.512,3098.6,3098.5,0.93184384]
[1765739010770,3.73926392,3098.6,3098.5,0.93184384]
[1765739011973,0.001,3098.6,3098.5,0.46534384]
[1765739012145,0.512,3098.6,3098.5,0.93184384]
[1765739012468,0.001,3098.6,3098.5,0.93184384]
[1765739012872,0.001,3098.6,3098.5,4.15921192]
[1765739013370,0.001,3098.6,3098.5,0.93184384]
[1765739013770,0.001,3098.6,3098.5,4.15921192]
[1765739014675,0.001,3098.6,3098.5,0.93184384]
[1765739018197,0.001,3098.6,3098.5,4.15921192]
[1765739020376,0.001,3098.6,3098.5,0.93184384]
[1765739023690,0.001,3098.6,3098.5,4.15921192]
[1765739024670,0.001,3098.6,3098.5,0.93184384]
[1765739025475,0.001,3098.6,3098.5,4.15921192]
[1765739026192,0.001,3098.6,3098.5,0.93184384]
[1765739026993,0.001,3098.6,3098.5,4.15921192]
[1765739028500,0.001,3098.6,3098.5,3.69271192]
[1765739028667,0.001,3098.6,3098.5,4.15921192]
[1765739031897,0.001,3098.6,3098.5,0.93184384]
[1765739035107,0.001,3098.6,3098.5,4.15921192]
[1765739035288,0.001,3098.6,3098.5,0.93184384]
[1765739036271,0.001,3098.6,3098.5,4.15921192]
[1765739039195,0.001,3098.6,3098.5,4.56471592]
[1765739049385,0.001,3098.6,3098.5,5.14519121]
[1765739051902,0.475,3098.6,3098.5,0.00024384]
[1765739052299,0.001,3098.6,3098.5,0.00024384]
[1765739052492,0.9694,3098.6,3098.5,0.00024384]
[1765739053293,0.475,3098.6,3098.5,0.00024384]
[1765739053713,0.9694,3098.6,3098.5,0.00024384]
[1765739053915,4.19666392,3098.6,3098.5,0.00024384]
[1765739054125,4.93913746,3098.6,3098.5,0.00024384]
[1765739054485,1.71187354,3098.6,3098.5,0.00024384]
[1765739054992,0.9694,3098.6,3098.5,0.00024384]
[1765739059597,4.19666392,3098.6,3098.5,0.00024384]
[1765739059783,0.9694,3098.6,3098.5,0.00024384]
[1765739060196,4.19666392,3098.6,3098.5,0.00024384]
[1765739060608,0.9694,3098.6,3098.5,0.00024384]
[1765739061210,1.3982614,3098.6,3098.5,0.00024384]
[1765739062192,4.62552532,3098.6,3098.5,0.00024384]
[1765739064310,1.3982614,3098.6,3098.5,0.00024384]
[1765739064634,1.9092614,3098.6,3098.5,0.00024384]
[1765739065322,0.9694,3098.6,3098.5,0.00024384]
[1765739065520,1.4804,3098.6,3098.5,0.00024384]
[1765739067096,4.70766392,3098.6,3098.5,0.00024384]
[1765739068227,1.4804,3098.6,3098.5,0.00024384]
[1765739069522,0.475,3098.6,3098.5,0.00024384]
[1765739069929,0.986,3098.6,3098.5,0.00024384]
[1765739071634,1.4577,3098.6,3098.5,0.00024384]
[1765739072730,4.68496392,3098.6,3098.5,0.00024384]
[1765739072931,5.48537877,3098.6,3098.5,0.00024384]
[1765739080919,4.97437877,3098.6,3098.5,0.00024384]
[1765739081118,5.48537877,3098.6,3098.5,0.00024384]
[1765739084245,1.27541485,3098.6,3098.5,0.00024384]
[1765739084407,0.512,3098.6,3098.5,0.46174384]
[1765739085136,3.73926392,3098.6,3098.5,0.46174384]
[1765739085546,4.23156392,3098.6,3098.5,0.00024384]
[1765739086141,4.70326392,3098.6,3098.5,0.00024384]
[1765739086439,4.19226392,3098.6,3098.5,0.00024384]
[1765739086642,4.70326392,3098.6,3098.5,0.00024384]
[1765739087341,4.23156392,3098.6,3098.5,0.00024384]
[1765739088644,5.50550007,3098.6,3098.5,0.00024384]
[1765739088816,4.70326392,3098.6,3098.5,0.00024384]
[1765739090442,5.68924321,3098.6,3098.5,0.00024384]
[1765739090642,5.81848579,3098.6,3098.5,0.00024384]
[1765739091144,0.58047529,3098.5,3098.0,0.002]
[1765739091314,0.43102583,3098.1,3098.0,0.002]
[1765739091516,4.1698106,3098.1,3098.0,0.002]
[1765739091716,4.6415106,3098.1,3098.0,0.002]
[1765739097216,4.71098589,3098.1,3098.0,0.002]
[1765739097422,8.87885123,3098.1,3098.0,0.002]
[1765739097635,10.22786683,3098.1,3098.0,0.002]
[1765739098822,6.57100149,3098.1,3098.0,0.002]
[1765739107128,6.06000149,3098.1,3098.0,0.002]
[1765739107428,6.57100149,3098.1,3098.0,0.002]
[1765739108463,6.06000149,3098.1,3098.0,0.002]
[1765739108629,6.57100149,3098.1,3098.0,0.002]
[1765739109129,6.06000149,3098.1,3098.0,0.002]
[1765739109361,6.57100149,3098.1,3098.0,0.002]
[1765739113463,10.23058895,3098.1,3098.0,0.002]
[1765739114568,9.71958895,3098.1,3098.0,0.002]
[1765739114776,10.23058895,3098.1,3098.0,0.002]
[1765739120349,9.24788895,3098.1,3098.0,0.002]
[1765739120678,9.75888895,3098.1,3098.0,0.002]
[1765739120885,5.24830149,3098.1,3098.0,0.4729]
[1765739121047,4.41028589,3098.1,3098.0,0.9467]
[1765739121248,4.86288589,3098.1,3098.0,0.002]
[1765739121453,5.32308589,3098.1,3098.0,0.002]
[1765739121748,4.41028589,3098.1,3098.0,0.002]
[1765739122172,4.41028589,3098.1,3098.0,0.4729]
[1765739124180,4.41028589,3098.1,3098.0,0.002]
[1765739124181,6.55525389,3098.1,3098.0,0.002]
[1765739125084,6.55525389,3098.1,3098.0,0.00024452]
[1765739125085,6.96075789,3098.1,3098.0,0.00024452]
[1765739125579,7.43655789,3098.1,3098.0,0.00024452]
[1765739126184,7.03105389,3098.1,3098.0,0.00024452]
[1765739128397,6.11825389,3098.1,3098.0,0.49084452]
[1765739129689,6.60275389,3098.1,3098.0,0.00024452]
[1765739130992,6.09175389,3098.1,3098.0,0.00024452]
[1765739131163,6.60275389,3098.1,3098.0,0.00024452]
[1765739132390,7.08025389,3098.1,3098.0,0.00024452]
[1765739132988,6.60275389,3098.1,3098.0,0.00024452]
[1765739133161,0.58047529,3098.0,3097.6,0.002]
[1765739133360,0.43292583,3097.7,3097.6,0.002]
[1765739133582,0.94392583,3097.7,3097.6,0.002]
[1765739133792,1.42142583,3097.7,3097.6,0.002]
[1765739134291,5.23010268,3097.7,3097.6,0.002]
[1765739134478,5.35937409,3097.7,3097.6,0.002]
[1765739134695,7.87834884,3097.7,3097.6,0.002]
[1765739134898,7.87834884,3097.7,3097.6,0.00024537]
[1765739135089,11.5394325,3097.7,3097.6,0.00024537]
[1765739135676,7.87834884,3097.7,3097.6,0.00024537]
[1765739136303,7.47284484,3097.7,3097.6,0.00024537]
[1765739139202,0.58047529,3097.6,3097.4,0.002]
[1765739139410,1.63123047,3097.5,3097.4,0.002]
[1765739139900,1.76050438,3097.5,3097.4,0.002]
[1765739141001,5.49991438,3097.5,3097.4,0.002]
[1765739142701,3.95970974,3097.5,3097.4,0.4926]
[1765739142891,3.44870974,3097.5,3097.4,0.4926]
[1765739143098,4.54018503,3097.5,3097.4,0.9925]
[1765739143779,4.54018503,3097.5,3097.4,0.4926]
[1765739143974,4.54018503,3097.5,3097.4,0.9925]
[1765739145309,5.64895673,3097.5,3097.4,0.002]
[1765739145605,6.13345673,3097.5,3097.4,0.002]
[1765739146314,5.64895673,3097.5,3097.4,0.4926]
[1765739152617,5.64895673,3097.5,3097.4,0.002]
[1765739155798,6.13345673,3097.5,3097.4,0.002]
[1765739156013,6.61095673,3097.5,3097.4,0.002]
[1765739157610,6.13345673,3097.5,3097.4,0.002]
[1765739160427,6.59215673,3097.5,3097.4,0.002]
[1765739161424,6.13345673,3097.5,3097.4,0.002]
[1765739163297,6.55865673,3097.5,3097.4,0.00024568]
[1765739164506,5.64895673,3097.5,3097.4,0.00024568]
[1765739164801,6.55865673,3097.5,3097.4,0.00024568]
[1765739165798,6.09995673,3097.5,3097.4,0.00024568]
[1765739166925,5.64895673,3097.5,3097.4,0.49184568]
[1765739170355,5.64895673,3097.5,3097.4,0.07198204]
[1765739171840,0.58047529,3097.4,3097.3,0.002]
[1765739172035,1.51340155,3097.4,3097.3,0.002]
[1765739172650,1.68360155,3097.4,3097.3,0.002]
[1765739173247,1.68360155,3097.4,3097.3,0.0826]
[1765739173436,4.91211578,3097.4,3097.3,0.0826]
[1765739176054,5.36311578,3097.4,3097.3,0.002]
[1765739176234,9.48203859,3097.4,3097.3,0.002]
[1765739177959,9.88754259,3097.4,3097.3,0.002]
[1765739178550,10.39854259,3097.4,3097.3,0.002]
[1765739181332,0.98597929,3096.8,3096.3,0.002]
[1765739181532,2.68852533,3096.8,3096.3,0.002]
[1765739181753,3.14722533,3096.8,3096.3,0.002]
[1765739181937,3.27654605,3096.8,3096.3,0.002]
[1765739182655,6.5056858,3096.8,3096.3,0.002]
[1765739183271,6.5056858,3096.8,3096.3,1e-08]
[1765739183272,0.856504,3096.4,3096.3,1e-08]
[1765739183425,5.6082021,3096.4,3096.3,1e-08]
[1765739183627,6.63682489,3096.4,3096.3,1e-08]
[1765739184541,0.405504,3096.0,3095.1,0.0806]
[1765739184746,0.09102583,3095.2,3095.0,0.0806]
[1765739184962,0.511,3095.1,3095.0,0.0806]
[1765739185331,0.511,3095.1,3095.0,0.1612]
[1765739185850,0.12935962,3095.3,3095.0,0.1612]
[1765739186040,0.09102583,3096.0,3095.2,0.0806]
[1765739186250,0.1702,3096.0,3095.7,0.0806]
[1765739186432,3.22947524,3096.5,3095.9,0.0806]
[1765739186433,0.511,3096.3,3095.9,0.0806]
[1765739186636,0.511,3096.3,3095.4,3.66022281]
[1765739186637,0.511,3096.3,3095.5,6.46099176]
[1765739186832,0.511,3096.3,3096.2,0.0806]
[1765739187154,0.511,3096.5,3096.2,0.0806]
[1765739187348,0.511,3096.5,3095.6,0.0806]
[1765739187349,0.511,3096.5,3096.4,0.0806]
[1765739187739,0.511,3096.5,3096.4,0.1612]
[1765739188549,0.09102583,3096.5,3096.4,0.1612]
[1765739188750,0.60202583,3096.5,3096.4,0.1612]
[1765739188951,3.83147843,3096.5,3096.4,0.1612]
[1765739189448,3.83147843,3096.5,3096.4,0.0806]
[1765739190968,7.06093103,3096.5,3096.1,0.002]
[1765739191269,0.09102583,3096.2,3096.1,0.0826]
[1765739191644,0.09102583,3096.2,3096.1,0.1632]
[1765739192562,0.09102583,3096.2,3096.1,0.0826]